Cogmind - Beta 16 @@@ ROGUE MODE // 2025.11.24 @ 23:32:59 Player: guru-sr Result: Destroyed by ZD-914(R) with Subdweller Laser Performance ------------- Evolutions (0) 0 Regions Visited (2) 400 Robots Destroyed (46) 230 Value Destroyed (811) 811 Prototype IDs (12) 240 Alien Tech Used (0) 0 Bonus (-93) -93 TOTAL SCORE: 1588 Bonus ------- Friendly Fire -93 Cogmind --------- Core Integrity 0/250 Matter 259/300 Energy 160/160 System Corruption 5% Temperature Cool (6) Movement Treading (160) Location -10/Subcaves Parts ------- > --- POWER (1) -------- Light Nuclear Core (fused) > --- PROPULSION (2) --- Light Treads Light Treads > --- UTILITY (2) ------ Large Storage Unit Seismic Detector > --- WEAPON (2) ------- Subdweller Beam Cannon Light Cannon > --- INVENTORY (15) --- Subdweller Power Source Light Treads Improved Terrain Scanner ECM Suite Light Armor Plating Makeshift Light Armor Plating Makeshift Light Armor Plating EM Pulse Gun Subdweller Laser Battle Rifle Battle Rifle Light Cannon Grenade Launcher Mining Laser Piercing Trap Peak State ------------ > --- POWER ------------ Light Nuclear Core > --- PROPULSION ------- Light Treads Light Treads > --- UTILITY ---------- Large Storage Unit Makeshift Light Armor Plating > --- WEAPON ----------- Subdweller Beam Cannon Light Cannon > --- INVENTORY -------- Light Treads Light Treads Improved Terrain Scanner Seismic Detector ECM Suite Light Armor Plating Makeshift Light Armor Plating EM Pulse Gun Subdweller Laser Subdweller Beam Cannon Assault Rifle Grenade Launcher Mining Laser [Rating: 15] Favorites ----------- Power Ion Engine Engine Ion Engine Power Core Light Nuclear Core Propulsion Light Treads Treads Light Treads Utility Seismic Detector Device Seismic Detector Storage Large Storage Unit Protection Makeshift Light Armor Plating Weapon Light Cannon Energy Gun Particle Gun Energy Cannon Subdweller Beam Cannon Ballistic Gun Assault Rifle Ballistic Cannon Light Cannon Launcher Grenade Launcher Special Weapon Mining Laser Build | -11 -10 -10 ------- Run | Yrd Mat Sub Slots Evolved . | . . . Power . | . . . Propulsion . | . . . Utility . | . . . Weapon . | . . . Parts Attached 30 | 7 11 12 Power 4 | 1 2 1 Engine 3 | 1 1 1 Core 1 | . 1 . Reactor . | . . . Propulsion 5 | 2 . 3 Treads 5 | 2 . 3 Leg . | . . . Wheel . | . . . Hover . | . . . Flight . | . . . Utility 9 | 2 4 3 Device 1 | 1 . . Storage 4 | 1 3 . Processor . | . . . Hackware . | . . . Protection 4 | . 1 3 Artifact . | . . . Weapon 12 | 2 5 5 Energy Gun 2 | . 1 1 Energy Cannon 2 | . . 2 Ballistic Gun 5 | 2 1 2 Ballistic Cannon 1 | . 1 . Launcher 1 | . 1 . Special Weapon 1 | . 1 . Impact Weapon . | . . . Slashing Weapon . | . . . Piercing Weapon . | . . . Special Melee Weapon . | . . . Unidentified Prototypes . | . . . Parts Lost 4 | . . 4 Power 1 | . . 1 Propulsion 2 | . . 2 Utility . | . . . Weapon 1 | . . 1 Highest Loss Streak 2 | . . 2 To Critical Strikes . | . . . Average Backups 12 | 5 10 13 Power . | . 1 . Propulsion 2 | 1 2 2 Utility 3 | . 2 4 Weapon 5 | 1 4 6 Tool/Special . | . . . Unused Backups 17 | 1 4 12 Power 1 | . . 1 Propulsion 3 | . 1 2 Utility 6 | 1 . 5 Weapon 6 | . 2 4 Tool/Special 1 | . 1 . Average Slot Usage (%) 99 | . 99 99 Engine 9 | . 13 6 Core 4 | . . 7 Treads 28 | . 28 28 Device 11 | . 13 10 Storage 14 | . 14 14 Protection 2 | . . 3 Energy Gun 3 | . 9 . Energy Cannon 6 | . . 10 Ballistic Gun 9 | . 15 6 Ballistic Cannon 7 | . 2 10 Peak Build Rating 15 | 7 11 15 Average Rating 10 | 6 8 11 On Entrance 5 | . 7 8 Avg Prop Armor Cover (%) . | . . . Naked Turns . | . . . Heaviest Build 41 | 12 31 41 Greatest Support 40 | 40 40 40 Greatest Overweight (x) 1 | . . 1 Average Overweight (x) . | . . . Largest Inventory Capacity 15 | 8 15 15 Average Capacity 13 | 7 12 15 Most Carried 15 | 7 15 15 Average Carried 12 | 5 10 14 Final Capacity 15 | 8 15 15 Final Carried 15 | 6 15 15 Class Distribution -------------------- 100% | Mutant Dominant Class ---------------- Mutant | -10/Materials Mutant | -10/Subcaves Resources | -11 -10 -10 ----------- Run | Yrd Mat Sub Matter Collected 1428 | 354 360 714 Remotely . | . . . Salvage Created 1138 | 263 435 440 Parts 82 | 25 31 26 Haulers Intercepted 2 | . 2 . Recyclers Shooed . | . . . Parts Field Recycled . | . . . Retrieved Matter . | . . . Parts Self-Destructed 13 | . . 13 Prevented . | . . . Parts Restored . | . . . Kills | -11 -10 -10 ------- Run | Yrd Mat Sub Combat Hostiles Destroyed 29 | . 13 16 Guns 12 | . 10 2 Cannons 14 | . . 14 AOE 3 | . 3 . Classes Destroyed 11 | 2 6 3 Worker 1 | . 1 . Builder 1 | . 1 . Tunneler 9 | 9 . . Hauler 2 | . 2 . Recycler 1 | 1 . . Watcher 3 | . 3 . Swarmer 16 | . 9 7 Grunt 4 | . 4 . Sentry 1 | . . 1 Artisan 1 | . . 1 Subdweller 8 | . . 8 Best Kill Streak 5 | 3 5 4 Combat Bots Only 4 | . 3 4 Max Kills in Single Turn 2 | 1 2 2 Gunslinging . | . . . Exploded 2 | . 2 . Melee . | . . . Uniques/NPCs Destroyed . | . . . Combat | -11 -10 -10 -------- Run | Yrd Mat Sub Hostile Shots Fired 159 | . 69 90 Missed 42 | . 22 20 Hits 117 | . 47 70 Projectile 117 | . 47 70 Critical Strikes 1 | . . 1 Damage Taken 1435 | . 390 1045 Core 262 | . 93 169 Absorbed by Shields . | . . . Redirected to Shielding 20 | . . 20 Regen/Repaired (Parts) 37 | . 37 . Core Remaining (%) 100 | 100 . . Volleys Fired 133 | 21 55 57 Largest 2 | 2 2 2 Hottest 110 | 40 100 110 Shots Fired 255 | 42 106 107 Gun 169 | 42 102 25 Cannon 75 | . . 75 Launcher 1 | . 1 . Special 10 | . 3 7 Kinetic 160 | 42 54 64 Thermal 90 | . 51 39 Explosive 1 | . 1 . Electromagnetic 4 | . . 4 Robot Hit Streak 10 | 10 6 8 Robot Miss Streak 4 | 2 3 4 Penetration Max . | . . . Secondary Targets . | . . . Shots Hit Robots 145 | 25 62 58 Core Hits 63 | 15 26 22 Critical Kills 2 | . 1 1 Critical Parts Destroyed 1 | 1 . . Critical Strikes 7 | 1 3 3 Burn 2 | . 2 . Destroy 4 | 1 1 2 Blast 1 | . . 1 Melee Attacks . | . . . Impact . | . . . Slashing . | . . . Piercing . | . . . Sneak Attacks . | . . . Combat Hostiles . | . . . Follow-up Attacks . | . . . Damage Inflicted 2800 | 260 1206 1334 Guns 1478 | 257 934 287 Cannons 1047 | . . 1047 Explosions 262 | . 262 . Melee . | . . . Ramming 13 | 3 10 . Kinetic 1305 | 257 425 623 Thermal 1385 | . 704 681 Explosive 67 | . 67 . Electromagnetic 30 | . . 30 Impact . | . . . Slashing . | . . . Piercing . | . . . Highest Corruption 5 | . 5 5 Average Corruption 4 | . 4 5 Corruption Purged . | . . . Corruption Blocked . | . . . Effects 107 | . 27 80 Message Errors 24 | . 4 20 Matter Fused 28 | . 6 22 Heat Flow Errors 13 | . 4 9 Energy Discharges 13 | . 4 9 Parts Fused 1 | . . 1 Data Loss (minor) 12 | . 3 9 Data Loss (major) 6 | . 2 4 Misfires 5 | . . 5 Alerts 4 | . 3 1 Weapon Failures 1 | . 1 . Overload Shots . | . . . Overflow Damage 96 | . 71 25 Projectiles 25 | . . 25 Explosions 71 | . 71 . Melee . | . . . Knockbacks 4 | . . 4 Impact . | . . . Kinetic 4 | . . 4 Secondary . | . . . Self-Inflicted Damage . | . . . Shots . | . . . Rammed 4 | 1 3 . Targets Rammed 4 | 1 3 . Kicked . | . . . Crushed . | . . . Highest Temperature 273 | . 273 229 Average Temperature 76 | . 80 66 Received Heat Transfer 165 | . 54 111 Siege Activations . | . . . Martial Activations . | . . . Shielding Activations . | . . . Robots Disrupted . | . . . Combat Hostiles . | . . . Robots Corrupted . | . . . Combat Hostiles . | . . . Parts Fried . | . . . Impact Corruptions . | . . . Robots Melted . | . . . Combat Hostiles . | . . . Parts Melted 2 | . 2 . Heat Transferred 2320 | . 1432 888 Parts Sabotaged . | . . . Parts Stolen . | . . . Parts Stripped . | . . . Power Chain Reactions . | . . . Alert | -11 -10 -10 ------- Run | Yrd Mat Sub Maximum Alert Level . | . . . Low Security (%) 100 | 100 100 . Level 1 . | . . . Level 2 . | . . . Level 3 . | . . . Level 4 . | . . . Level 5 . | . . . High Security . | . . . Max Security . | . . . Peak Influence 178 | 10 178 . Initial . | . . . Average 74 | 1 87 . Influence Increases 898 | 50 558 290 Destroy 0b10 Robot/C 420 | . 260 160 Destroy 0b10 Robot/NC 85 | 50 35 . Destroy Leader 80 | . 70 10 Successful Hack 36 | . 36 . Select Force Hacks 60 | . 60 . Disable Machine 15 | . 15 . Destroy Structure 22 | . 22 . Lose Combat Pursuer 180 | . 60 120 Influence Decreases 840 | 50 460 330 Entered New Map 48 | . . 48 Time Decay 764 | 50 460 254 Lost Part 28 | . . 28 Squads Dispatched 3 | . 3 . Investigation 3 | . 3 . Extermination . | . . . Reinforcement . | . . . Assault . | . . . Garrison . | . . . Intercept . | . . . Searches Triggered . | . . . Construction Impeded . | . . . Haulers Reinforced . | . . . Active Scanning Responses . | . . . Cargo Convoy Interrupts . | . . . Stealth | -11 -10 -10 --------- Run | Yrd Mat Sub Distress Signals 1 | . 1 . Communications Jammed . | . . . Distress Signals . | . . . Times Spotted 45 | . 23 22 Peak Tracking Total 6 | . 4 6 Tactical Retreats 5 | . 2 3 Traps | -11 -10 -10 ------- Run | Yrd Mat Sub Traps Triggered 6 | . 4 2 Indirectly . | . . . Trap Hack Attempts . | . . . Triggered . | . . . Disarmed . | . . . Reprogrammed . | . . . Reused 1 | . . 1 Traps Extracted . | . . . Installed 1 | . . 1 Triggered 1 | . . 1 Most Traps Carried 1 | . . 1 Machines | -11 -10 -10 ---------- Run | Yrd Mat Sub Machines Disabled 1 | . 1 . Max in Single Turn 1 | . 1 . Machines Repaired . | . . . Machines Dismantled . | . . . Machines Sabotaged . | . . . Overloaded Fab Kills . | . . . Hacking | -11 -10 -10 --------- Run | Yrd Mat Sub Machines Accessed 13 | . 11 2 Terminals 8 | . 8 . Fabricators . | . . . Repair Stations 1 | . 1 . Recycling Units 2 | . 2 . Scanalyzers . | . . . Garrison Access . | . . . Total Hacks 48 | . 36 12 Successful 29 | . 17 12 Failed 18 | . 18 . Catastrophic . | . . . Database Lockouts 1 | . 1 . Manual 28 | . 28 . Terminals 30 | . 30 . Fabricators . | . . . Repair Stations 2 | . 2 . Recycling Units 4 | . 4 . Scanalyzers . | . . . Garrison Access . | . . . Terminal Hacks 16 | . 4 12 Record 11 | . . 11 Robot Analysis 2 | . 2 . Terminal Index 1 | . 1 . Locate Traps 1 | . 1 . Proto ID Catalog 1 | . . 1 Fabricator Hacks . | . . . Repair Station Hacks 2 | . 2 . Scan Component 1 | . 1 . Repair 1 | . 1 . Recycling Unit Hacks 2 | . 2 . Report Inventory 2 | . 2 . Scanalyzer . | . . . Garrison Access Hacks . | . . . Unauthorized Hacks 9 | . 9 . Terminals 7 | . 7 . Botnet 2 | . 2 . Operators 2 | . 2 . Skim 3 | . 3 . Fabricators . | . . . Repair Stations . | . . . Recycling Units 2 | . 2 . Tunnel 2 | . 2 . Scanalyzers . | . . . Garrison Access . | . . . Data Cores Recovered . | . . . Used . | . . . Hacking Detections 9 | . 9 . Full Trace Events . | . . . Feedback Events . | . . . Feedback Blocked . | . . . Robot Schematics Acquired . | . . . Robots Built . | . . . Authchips . | . . . Time . | . . . Total Robot Build Rating . | . . . Part Schematics Acquired . | . . . Parts Built . | . . . Authchips . | . . . Time . | . . . Total Part Build Rating . | . . . Part Studies Acquired . | . . . Parts Repaired 1 | . 1 . Time 26 | . 26 . Parts Recycled . | . . . Recycled Matter . | . . . Retrieved Matter . | . . . Retrieved Components . | . . . Parts Scanalyzed . | . . . Part Schematics Acquired . | . . . Parts Damaged . | . . . Bothacking | -11 -10 -10 ------------ Run | Yrd Mat Sub Used RIF Installer . | . . . Robots Hacked . | . . . Non-combat . | . . . Combat . | . . . Robot Hacks Applied . | . . . Relay Couplers Released . | . . . Fabnet Peak Effective % . | . . . Robots Rewired . | . . . Allies Hacked . | . . . Hacks Repelled . | . . . Allies | -11 -10 -10 -------- Run | Yrd Mat Sub Total Allies . | . . . Largest Group . | . . . Highest-Rated Group . | . . . Highest-Rated Ally . | . . . Total Orders . | . . . Ally Attacks . | . . . Total Damage . | . . . Kills . | . . . Allies Corrupted . | . . . Allies Melted . | . . . Intel | -11 -10 -10 ------- Run | Yrd Mat Sub Active Infowar (turns) 4420 | 254 1792 2374 Seismic 4420 | 254 1792 2374 Robot Analysis Total 2 | . 2 . Derelict Logs Recovered 2 | . . 2 Drone Launches . | . . . Drone Recoveries . | . . . Exploration | -11 -10 -10 ------------- Run | Yrd Mat Sub Turns Passed 5424 | 324 1821 3279 Spaces Moved 2701 | 101 929 1671 Core 3 | 3 . . Treads 2698 | 98 929 1671 Legs . | . . . Wheels . | . . . Hover . | . . . Flight . | . . . Fastest Speed 50 | 50 160 160 Average Speed 160 | 156 160 160 Slowest Speed 240 | 160 160 240 Overloaded Moves . | . . . Propulsion Burnouts . | . . . Robots Hopped . | . . . Potential Cave-ins . | . . . Cave-ins Triggered . | . . . Exploration Rate (%) 61 | 4 99 82 Regions Visited 2 Branch Regions 1 Pre-discovered Areas 3 | . 2 1 Known Exits Taken . | . . . Unknown Exits Taken 2 | 1 1 . Scrap Searched 9 | . . 9 Spaces Dug 3 | . 3 . Terrain Destroyed 26 | . 21 5 Melee . | . . . Projectile 8 | . 3 5 AOE 18 | . 18 . Terrain Rammed . | . . . Walls Destroyed . | . . . Machines Disabled . | . . . Actions | -11 -10 -10 --------- Run | Yrd Mat Sub Total 3521 | 225 1151 2145 Wait 561 | 88 121 352 Move 2699 | 100 928 1671 Hop . | . . . Pick Up 35 | 7 15 13 Fast Attach 12 | 7 3 2 Attach 6 | . 1 5 Detach 2 | . 2 . Swap 43 | . 11 32 Drop 25 | 1 12 12 Fire 133 | 21 55 57 Melee . | . . . Ram . | . . . Kick . | . . . Crush 4 | 1 3 . Escape Stasis . | . . . Rewire . | . . . Trap 1 | . . 1 Miscellaneous . | . . . Route ------- -11/Scrapyard -10/Materials (discovered 5 exits: [*Mat x3] / [*Min] / *Sub) -10/Subcaves (discovered 2 exits: [*Mat x2]) History --------- Turn | Location | Event 35 | -11/Scrapyard | Discovered new exit (range 15) 325 | -11/Scrapyard | Entered Materials 326 | -10/Materials | Build established: Mutant 527 | -10/Materials | Discovered new exit (range 9) 764 | -10/Materials | Discovered new exit (range 12) 1151 | -10/Materials | Discovered new exit (range 16) 1387 | -10/Materials | Central database locked down 1413 | -10/Materials | Discovered new exit (range 6) 1977 | -10/Materials | Repaired Ion Engine 2132 | -10/Materials | Discovered new exit (range 7) 2146 | -10/Materials | Entered Subcaves 2147 | -10/Subcaves | Approached by a straggling Scientist 2348 | -10/Subcaves | Core integrity fell below 50% 2755 | -10/Subcaves | Disturbed a concealed Subdweller 2794 | -10/Subcaves | Disturbed a concealed Subdweller 3089 | -10/Subcaves | Visited Clippyterm 3094 | -10/Subcaves | Learned Research machine intel 3220 | -10/Subcaves | Visited 4L-MR0's lab 3446 | -10/Subcaves | Discovered new exit (range 10) 5105 | -10/Subcaves | Core integrity fell below 20% 5281 | -10/Subcaves | Learned 2 Materials zone layouts 5284 | -10/Subcaves | Learned 2 Materials zone layouts 5343 | -10/Subcaves | Learned location of Zion (-6) 5343 | -10/Subcaves | Met a Zionite searching for "candidates" 5351 | -10/Subcaves | Shifting Twisted Machinery released Piercing Trap 5366 | -10/Subcaves | Shifting Twisted Machinery released Battle Rifle 5373 | -10/Subcaves | Discovered new exit (range 8) 5425 | -10/Subcaves | Destroyed by ZD-914(R) with Subdweller Laser Last Messages --------------- 05235_ UOOT 0NB,V4I0OC/HQ8R3K3M%3|42M 05281_ Acquired derelict log, extracted data. Data stored: Materials zone layouts (x2). 05284_ Acquired derelict log, extracted data. Data stored: Materials zone layouts (x2). 05287_ U/ZTCUPO47C,3RJR,BUKY 05315_ System corrupted: Substantial component data lost. 05325_ 4I-EJ5(z): "She is not going to be happy we haven't found any suitable candidates yet." 05331_ System corrupted: Energy discharge (-41). 05343_ 4I-EJ5(z): "Hey you! It's really dangerous down here, I feel that you could die at any moment. For your health and safety might I suggest a trip to Zion?" World map updated: -6/Zion. Piercing Trap falls loose from the Twisted Machinery. 05358_ Dropped Assault Rifle. 05361_ Acquired Piercing Trap. Battle Rifle falls loose from the Twisted Machinery. 05373_ EXIT=FOUND 05389_ System corrupted: Component data lost. Map ----- +----------------------------------------------------+ | ?????????????????????# "######????????????????? | | ?????????????????????## "" #????????????????? | | ??????????????????????# """ #????????????????? | | ?????????????????????## """" #????????????????? | | ?????????????????????# [""" ##???????????????? | | ?????????????????????## """ #???????????????? | | ??????????????????????# #???????????????? | | ??????????????????????# ###???????????????? | | ?????????????????????## < ##?????????????????? | | ?????????????????????# ####???????????????? | | ?????????????????????# " ##??????????????? | | ?????????????????????## ""# #??????????????? | | ??????????????????????### "# ##??????????????? | | ???????????????????????#" # ##??????????????? | | ???????????????????????#" "# #??????????????? | | ???????????????????????## ""# #??????????????? | | ????????????????????????# u"# #??????????????? | | ???????????????????????## #??????????????? | | ??????????????????????## #??????????????? | | ??????????????????????#"" """ #??????????????? | | ?????????????????????##" " "##??????????????? | | ?????????????????????#" #""#???????????????? | | ?????????????????????### ### #??????????????? | | ???????????????????????# ##? #??????????????? | | ???????????????????????## ## #?????????????? | | ???????????????????????# @ #?????????????? | | ???????????????????? #?????????????? | | ???????????????? ###?????????????? | | ?????????????# #R " ##???????????????? | | ?????????????#???##"" ####????????????????? | | ??????????????????#"" #####???????????????????? | | ??????????????????#"##????????????????????????? | | ??????????????????##??????????????????????????? | | ??????????????????????????????????????????????? | | ??????????????????????????????????????????????? | | ??????????????????????????????????????????????? | | ??????????????????????????????????????????????? | | ??????????????????????????????????????????????? | | ??????????????????????????????????????????????? | | ??????????????????????????????????????????????? | | ??????????????????????????????????????????????? | | ??????????????????????????????????????????????? | | ??????????????????????????????????????????????? | | ??????????????????????????????????????????????? | | ??????????????????????????????????????????????? | | ??????????????????????????????????????????????? | | ??????????????????????????????????????????????? | | ??????????????????????????????????????????????? | | ??????????????????????????????????????????????? | | | +----------------------------------------------------+ Best States ------------- Heat Dissipation 25 Energy Generation 14 Energy Capacity 250 Matter Stores 300 Matter Capacity 300 Sight Range 16 Terrain Scan Density 10 Armor Coverage 100 Resistance: TH 10 Weapon Shielding 33 Evasion (%) 40 Recoil Reduction 2 Item Schematics ----------------- None Robot Schematics ------------------ None Fabricated ------------ Nothing Repaired ---------- Ion Engine | 38% | -10/Materials Studied --------- None Alien Tech Used ----------------- None Achievements -------------- None Challenges ------------ None Game ------ Seed SubatomicPlasmaMicrothruster Manual? 0 Play Time 00:36:03 Cumulative 62.8 hours Start 2025.11.24 @ 22:57:09 End 2025.11.24 @ 23:32:59 Sessions 1 Manual Loads 0 Difficulty Rogue Special Mode None Game No. 35 Rogue 35 Adventurer 0 Explorer 0 Win Type - Total 1 Types 1/0/0/0/0/0/0/0/0/0 Lore% 23 Gallery% 30 Achievement% 34 Wizard Run 0 Options --------- Layout 0 ASCII 0 Keyboard 0 Movement Mouse Keybinds 0 Fullscreen 1 Font 18/SmallcapsGlow Map View 76x50 Zoom Use 0% Tactical HUD 1 Map Filters NONE Filters NONE Steam 1 RUN: c67d1267-76ba-41dd-b760-d17f42cf11ac